bitfinex-derivatives/quotes_SOLF0:USTF0_20241005
["timestamp","ask_amount","ask_price","bid_price","bid_amount"]
[1728118381700,3.4636,144.35,144.34,4.86]
[1728118383201,3.4634,144.36,144.34,4.86]
[1728118384104,1.3497,144.39,144.32,1.3756]
[1728118384413,3.4638,144.35,144.33,4.86]
[1728118387705,3.4638,144.34,144.33,4.86]
[1728118388910,1.3497,144.39,144.32,4.86]
[1728118389405,3.4631,144.37,144.32,4.86]
[1728118389605,1.3497,144.39,144.32,4.86]
[1728118390112,3.4641,144.34,144.32,4.86]
[1728118396108,1.3497,144.39,144.33,3.464]
[1728118396314,1.3497,144.39,144.32,4.86]
[1728118396512,1.3497,144.39,144.33,1.4189]
[1728118396711,4.8124,144.39,144.35,3.4634]
[1728118397015,1.3497,144.39,144.36,4.86]
[1728118397521,3.4629,144.38,144.36,4.86]
[1728118399305,3.4631,144.37,144.36,4.86]
[1728118405511,1.3497,144.39,144.33,1.4189]
[1728118405816,1.3497,144.39,144.34,4.86]
[1728118406813,3.4633,144.37,144.34,8.3237]
[1728118408723,3.4629,144.38,144.35,3.4635]
[1728118408913,0.12502,144.41,144.34,4.86]
[1728118409115,0.12502,144.41,144.35,3.42428187]
[1728118409925,3.4628,144.39,144.36,3.4632]
[1728118410218,0.12502,144.41,144.37,4.86]
[1728118410420,3.4625,144.4,144.37,4.86]
[1728118410611,0.12502,144.41,144.37,4.86]
[1728118411723,3.4628,144.39,144.37,4.86]
[1728118415226,0.12502,144.41,144.34,1.3182]
[1728118415427,0.12502,144.41,144.33,1.4189]
[1728118415626,0.12502,144.41,144.35,4.86]
[1728118416324,3.4635,144.36,144.33,4.8828]
[1728118416523,0.12502,144.41,144.34,4.86]
[1728118416524,1.3147,144.4,144.34,4.86]
[1728118416729,2.6734,144.4,144.34,4.86]
[1728118418226,3.4637,144.35,144.34,4.86]
[1728118443455,2.6734,144.4,144.34,4.86]
[1728118444150,3.4636,144.35,144.34,4.86]
[1728118445059,2.6734,144.4,144.34,4.86]
[1728118446058,3.4635,144.36,144.34,4.86]
[1728118451563,2.6734,144.4,144.34,4.86]
[1728118453057,3.4635,144.36,144.34,4.86]
[1728118458869,2.6734,144.4,144.34,4.86]
[1728118459569,3.4632,144.37,144.34,8.3237]
[1728118460461,3.4632,144.37,144.34,4.86]
[1728118466367,3.4632,144.37,144.34,8.3238]
[1728118471382,3.4632,144.37,144.35,4.86]
[1728118485386,3.4629,144.38,144.36,3.4633]
[1728118485588,1.3147,144.4,144.36,3.4633]
[1728118485790,0.12502,144.41,144.35,4.86]
[1728118486190,3.4625,144.4,144.37,3.4631]
[1728118486390,3.4625,144.4,144.38,4.86]
[1728118502111,3.58722,144.41,144.38,8.3228]
[1728118505014,0.12502,144.41,144.38,4.86]
[1728118506317,0.12502,144.41,144.39,3.4624]
[1728118511219,0.12502,144.41,144.38,4.86]
[1728118511419,0.12502,144.41,144.35,2.7668]
[1728118511420,0.12502,144.41,144.36,4.84]
[1728118511726,3.4625,144.4,144.36,4.84]
[1728118512025,0.12502,144.41,144.36,4.84]
[1728118513015,3.4628,144.39,144.36,8.3033]
[1728118513928,0.12502,144.41,144.36,8.3033]
[1728118514221,3.4625,144.4,144.36,8.3033]
[1728118514529,3.4625,144.4,144.37,3.463]
[1728118516025,3.58722,144.41,144.36,4.84]
[1728118516231,3.58722,144.41,144.38,3.4628]
[1728118516527,3.58722,144.41,144.39,4.84]
[1728118518219,0.12502,144.41,144.39,4.84]
[1728118518424,0.12502,144.41,144.39,8.3026]
[1728118521725,0.12502,144.41,144.39,4.84]
[1728118522030,0.12502,144.41,144.4,3.4624]
[1728118530429,0.12502,144.41,144.39,8.3026]
[1728118536736,0.12502,144.41,144.3,9.56617283]
[1728118536948,1.47142,144.41,144.34,4.84]
[1728118537942,3.463,144.38,144.34,4.84]
[1728118539148,3.463,144.38,144.35,3.4636]
[1728118539644,3.4626,144.39,144.35,3.4636]
[1728118541741,3.4629,144.38,144.35,3.4636]
[1728118545954,3.4627,144.39,144.34,4.84]
[1728118546754,3.4627,144.39,144.35,3.4635]
[1728118547654,3.4627,144.39,144.36,4.84]
[1728118548549,3.4627,144.39,144.36,8.3033]
[1728118553649,1.47142,144.41,144.36,8.3033]
[1728118553949,3.4625,144.4,144.36,8.3033]
[1728118558060,3.4625,144.4,144.37,3.4631]
[1728118569059,1.47142,144.41,144.36,4.84]
[1728118569266,3.4626,144.39,144.36,8.3033]
[1728118570057,1.47142,144.41,144.36,4.84]
[1728118570266,4.93362,144.41,144.37,3.4629]
[1728118571969,3.4625,144.4,144.37,3.4631]
[1728118574373,4.93372,144.41,144.37,3.4631]
[1728118574776,0.12502,144.41,144.37,3.463]
[1728118574965,0.12502,144.41,144.36,4.84]
[1728118575968,0.12502,144.41,144.38,3.4627]
[1728118579679,0.12502,144.41,144.39,4.84]
[1728118579872,0.12502,144.41,144.4,3.4624]
[1728118593587,0.12502,144.41,144.39,8.3025]
[1728118596478,0.12502,144.41,144.39,4.84]
[1728118596692,0.12502,144.41,144.4,3.4624]
[1728118609293,0.12502,144.41,144.36,1.4264]
[1728118609508,0.12502,144.41,144.37,4.84]
[1728118609792,3.4629,144.38,144.37,4.84]
[1728118610195,0.12502,144.41,144.37,4.84]
[1728118610394,3.4627,144.39,144.37,4.84]
[1728118619406,3.4625,144.4,144.37,4.84]
[1728118619705,8.63502,144.41,144.37,4.84]
[1728118621110,3.4627,144.39,144.37,4.84]
[1728118624108,8.51,144.39,144.37,4.84]
[1728118624309,3.4629,144.38,144.37,4.84]
[1728118626606,11.9727,144.39,144.37,4.84]
[1728118630613,11.9727,144.39,144.35,8.3036]
[1728118633023,3.4629,144.38,144.35,8.3036]
[1728118634221,8.51,144.37,144.31,1.2944]
[1728118634525,8.51,144.34,144.29,8.63502]
[1728118634725,8.51,144.32,144.3,4.84]
[1728118634924,3.4648,144.3,144.29,0.12502]
[1728118635226,11.9748,144.3,144.29,0.12502]
[1728118636528,8.51,144.3,144.29,0.12502]
[1728118636727,8.51,144.31,144.29,0.12502]
[1728118639431,11.9746,144.31,144.29,0.12502]
[1728118647842,1.2994,144.35,144.29,8.63502]
[1728118648039,3.38147686,144.39,144.3,13.35]
[1728118648238,8.51,144.37,144.32,8.51]
[1728118648443,11.9731,144.37,144.34,3.4638]
[1728118648645,3.4631,144.37,144.34,3.4638]
[1728118648832,2.6299,144.4,144.33,13.35]
[1728118649037,8.51,144.39,144.36,3.4633]
[1728118650238,8.51,144.39,144.33,13.35]
[1728118650439,11.9728,144.39,144.35,3.4635]
[1728118651346,8.51,144.39,144.34,8.51]
[1728118651541,8.51,144.39,144.36,3.4632]
[1728118651750,8.51,144.39,144.36,8.3032]
[1728118652042,11.9728,144.39,144.36,4.84]
[1728118671255,11.9728,144.39,144.36,8.3033]
[1728118673956,3.4625,144.4,144.37,3.463]
[1728118674257,0.12502,144.41,144.37,8.51]
[1728118675058,3.58722,144.41,144.38,3.4628]
[1728118679457,3.4626,144.39,144.36,8.3033]
[1728118679658,3.4626,144.39,144.36,4.84]
[1728118679659,8.51,144.39,144.36,4.84]
[1728118680459,3.4629,144.38,144.36,4.84]
[1728118680763,8.51,144.37,144.34,4.84]
[1728118680962,11.9733,144.37,144.34,4.84]
[1728118682766,11.9733,144.37,144.33,11.9739]
[1728118683067,11.9733,144.37,144.34,4.84]
[1728118684567,3.463,144.38,144.35,3.4635]
[1728118686966,9.9155,144.39,144.33,8.51]
[1728118687171,8.51,144.37,144.34,4.84]
[1728118687969,11.9732,144.37,144.34,8.3038]
[1728118688766,8.51,144.37,144.34,8.3038]
[1728118695869,3.463,144.38,144.34,13.35]
[1728118696072,1.4055,144.39,144.35,8.51]
[1728118696474,1.4055,144.39,144.36,3.4632]
[1728118697578,1.4055,144.39,144.37,3.4631]
[1728118699777,1.4055,144.39,144.36,4.84]
[1728118699979,4.8681,144.39,144.36,8.3032]
[1728118706186,3.4626,144.39,144.36,8.3032]
[1728118709980,8.51,144.4,144.31,1.3]
[1728118710173,11.9731,144.37,144.34,3.4637]
[1728118710376,8.51,144.37,144.34,3.4637]
[1728118714492,3.47514538,144.39,144.33,8.51]
[1728118714792,8.51,144.39,144.33,8.51]
[1728118714994,11.89780031,144.39,144.33,8.51]
[1728118716097,3.4629,144.38,144.35,3.4635]
[1728118716294,3.4629,144.38,144.35,8.3035]
[1728118719599,3.4629,144.38,144.35,4.84]
[1728118722601,3.4629,144.38,144.35,8.3036]
[1728118723508,8.51,144.37,144.35,4.82]
[1728118725806,70.28458809,144.41,144.35,13.33]
[1728118727006,3.4624,144.4,144.37,3.4629]
[1728118728514,11.9729,144.38,144.35,8.2835]
[1728118729015,3.47929756,144.4,144.35,4.82]
[1728118729016,8.51,144.4,144.35,4.82]
[1728118729207,11.9725,144.4,144.37,3.463]
[1728118729606,61.77458809,144.41,144.38,4.82]
[1728118729812,61.77458809,144.41,144.39,3.4625]
[1728118730114,0.12502,144.41,144.38,4.82]
[1728118730506,0.12502,144.41,144.39,3.4625]
[1728118731305,0.12502,144.41,144.4,3.4624]
[1728118731510,0.12502,144.41,144.4,11.9724]
[1728118731815,9.8331,144.45,144.42,3.4618]
[1728118732113,8.63502,144.47,144.42,4.82]
[1728118732509,8.63502,144.47,144.43,3.4616]
[1728118732510,12.09592,144.47,144.43,3.4616]
[1728118733212,3.461,144.46,144.43,3.4616]
[1728118736812,11.971,144.46,144.43,3.4616]
[1728118740421,3.461,144.46,144.43,3.4616]
[1728118740623,11.971,144.46,144.43,3.4616]
[1728118749930,3.4614,144.44,144.42,4.82]
[1728118750131,0.12502,144.47,144.42,4.82]
[1728118750326,8.51,144.45,144.42,4.82]
[1728118750523,11.9712,144.45,144.42,3.4619]
[1728118750724,11.9712,144.45,144.43,4.82]
[1728118751227,3.461,144.46,144.43,8.2815]
[1728118753725,3.461,144.46,144.43,4.82]
[1728118755729,8.51,144.45,144.43,4.82]
[1728118757121,3.4614,144.44,144.43,4.82]
[1728118768641,8.51,144.44,144.36,76.0356]
[1728118768937,8.51,144.42,144.37,4.82]
[1728118769141,3.4622,144.41,144.37,4.82]
[1728118769537,3.4622,144.41,144.37,8.283]
[1728118770342,3.4622,144.41,144.37,3.463]
[1728118770539,3.4622,144.41,144.38,4.82]
[1728118770836,1.347,144.44,144.36,3.4633]
[1728118770837,8.51,144.39,144.36,3.4633]
[1728118771041,8.51,144.39,144.37,4.82]
[1728118772760,11.9727,144.39,144.37,4.82]
[1728118777555,3.4629,144.38,144.37,4.82]
[1728118779364,3.4629,144.38,144.35,3.58852]
[1728118782868,13.3915,144.39,144.35,3.58852]
[1728118783672,1.8676,144.44,144.35,8.63502]
[1728118783969,1.8676,144.44,144.37,8.51]
[1728118783970,8.51,144.41,144.37,8.51]
[1728118784162,8.51,144.41,144.37,13.33]
[1728118784367,8.51,144.41,144.38,3.4626]
[1728118785668,11.9722,144.41,144.38,3.4626]
[1728118785868,8.51,144.4,144.38,3.4626]
[1728118786965,3.4618,144.43,144.4,3.4622]
[1728118787268,6.1899,144.44,144.37,4.82]
[1728118787470,8.51,144.41,144.37,4.82]
[1728118787863,11.9722,144.41,144.38,3.4627]
[1728118789066,8.51,144.41,144.39,3.4625]
[1728118790160,8.51,144.41,144.37,4.82]
[1728118790364,8.51,144.41,144.38,3.4628]
[1728118791071,11.9721,144.41,144.38,3.4628]
[1728118792469,3.4621,144.41,144.38,3.4628]
[1728118792674,3.4612,144.45,144.42,3.4618]
[1728118792873,11.9712,144.45,144.42,8.2818]
[1728118801978,3.4612,144.45,144.42,8.2818]
[1728118818181,8.51,144.44,144.42,4.82]
[1728118818385,8.51,144.43,144.4,4.82]
[1728118819284,11.9717,144.43,144.4,8.2823]
[1728118819488,8.51,144.43,144.4,8.2823]
[1728118822488,8.51,144.45,144.42,3.4618]
[1728118822990,11.9713,144.45,144.42,4.82]
[1728118823387,8.51,144.45,144.42,4.82]
[1728118823778,1.3564,144.46,144.43,8.51]
[1728118824090,0.12502,144.47,144.43,8.51]
[1728118824591,8.63502,144.47,144.43,8.51]
[1728118825093,12.09582,144.47,144.44,3.4613]
[1728118826988,3.58582,144.47,144.44,3.4613]
[1728118827192,12.09582,144.47,144.45,4.82]
[1728118829798,3.4609,144.46,144.45,4.82]
[1728118831499,11.9709,144.46,144.45,4.82]
[1728118840299,0.12502,144.47,144.45,4.82]
[1728118841303,3.58572,144.47,144.45,4.82]
[1728118844000,11.9709,144.46,144.45,4.82]
[1728118845701,8.51,144.46,144.45,4.82]
[1728118845901,3.58582,144.47,144.45,4.82]
[1728118850510,3.58582,144.47,144.44,3.4614]
[1728118850711,3.58582,144.47,144.45,4.82]
[1728118851117,11.9709,144.46,144.45,4.82]
[1728118851423,11.9709,144.46,144.42,8.2818]
[1728118851626,8.51,144.45,144.42,8.2818]
[1728118852823,11.9712,144.45,144.42,8.2818]
[1728118853024,3.4612,144.45,144.42,3.4618]
[1728118853227,11.9712,144.45,144.43,4.82]
[1728118857724,3.4612,144.45,144.43,4.82]
[1728118861328,3.51324389,144.47,144.43,4.82]
[1728118861636,12.09582,144.47,144.43,16.7914]
[1728118863832,12.09582,144.47,144.44,3.4614]
[1728118864837,0.12502,144.47,144.46,3.4609]
[1728118865039,0.12502,144.47,144.46,8.2809]
[1728118868636,0.12502,144.47,144.46,4.82]
[1728118869028,8.63502,144.47,144.38,1.3004]
[1728118869239,8.51,144.44,144.39,1.16508238]
[1728118869440,8.51,144.44,144.4,4.82]
[1728118869739,11.9716,144.44,144.4,8.2822]
[1728118871438,8.51,144.44,144.4,13.33]
[1728118871634,11.9713,144.45,144.4,13.33]
[1728118871843,8.51,144.45,144.41,8.51]
[1728118872142,9.9186,144.46,144.41,8.51]
[1728118873045,13.3797,144.46,144.42,3.4617]
[1728118873246,13.3797,144.46,144.43,4.82]
[1728118875144,8.51,144.44,144.43,4.82]
[1728118875832,11.9714,144.44,144.43,4.82]
[1728118876748,3.4614,144.44,144.43,4.82]
[1728118881539,11.9714,144.44,144.43,4.82]
[1728118881843,11.9714,144.44,144.41,3.462]
[1728118882041,11.9714,144.44,144.41,8.282]
[1728118882738,8.51,144.44,144.41,4.82]
[1728118882943,0.12502,144.47,144.42,8.51]
[1728118883247,0.12502,144.47,144.43,8.51]
[1728118883442,0.12502,144.47,144.44,4.82]
[1728118885047,0.12502,144.47,144.45,3.4612]
[1728118894452,0.12502,144.47,144.44,4.82]
[1728118894753,0.12502,144.47,144.46,3.4609]
[1728118896656,0.12502,144.47,144.46,11.9709]
[1728118898060,0.12502,144.47,144.45,3.4611]
[1728118898252,0.12502,144.47,144.46,4.82]
[1728118901948,3.58592,144.47,144.43,11.9715]
[1728118902154,0.12502,144.47,144.42,8.51]
[1728118902353,8.51,144.45,144.4,8.51]
[1728118902555,11.9713,144.45,144.43,4.82]
[1728118902963,8.51,144.45,144.43,4.82]
[1728118907663,3.4611,144.46,144.43,4.82]
[1728118907858,3.4611,144.46,144.43,8.2816]
[1728118910459,3.4611,144.46,144.43,4.82]
[1728118914367,10.05592,144.47,144.43,4.82]
[1728118914569,3.4612,144.45,144.43,4.82]
[1728118922873,11.971,144.46,144.43,8.2816]
[1728118924970,3.4612,144.45,144.43,4.82]
[1728118929479,11.9712,144.45,144.43,4.82]
[1728118929680,3.4617,144.43,144.42,4.82]
[1728118931986,8.51,144.45,144.42,4.82]
[1728118932287,3.4615,144.44,144.42,4.82]
[1728118933793,8.51,144.45,144.42,4.82]
[1728118934089,11.971,144.46,144.43,3.4616]
[1728118934482,3.4612,144.45,144.42,8.2818]
[1728118935476,8.51,144.44,144.42,8.2818]
[1728118937484,11.9716,144.44,144.42,4.82]
[1728118938784,8.51,144.43,144.39,53.86580543]
[1728118938984,1.54592,144.47,144.4,4.82]
[1728118938985,11.972,144.42,144.4,4.82]
[1728118939184,8.51,144.42,144.39,53.86580543]
[1728118939387,8.51,144.42,144.39,58.68580543]
[1728118942993,11.972,144.42,144.39,62.14840543]
[1728118943897,11.9725,144.4,144.37,4.82]
[1728118944993,11.9725,144.4,144.37,8.2831]
[1728118950396,8.51,144.4,144.37,8.2831]
[1728118953900,8.51,144.4,144.37,4.82]
[1728118954102,8.51,144.4,144.38,3.4628]
[1728118956200,11.9722,144.41,144.38,3.4628]
[1728118971422,8.51,144.41,144.38,3.4628]
[1728118971620,1.54592,144.47,144.37,4.82]
[1728118971823,8.51,144.43,144.38,8.51]
[1728118972522,8.51,144.43,144.38,9.8051]
[1728118972728,8.51,144.42,144.4,3.4622]
[1728118977033,3.4617,144.43,144.4,3.4622]
[1728118977233,8.51,144.42,144.4,3.4622]
[1728118978539,3.4617,144.43,144.4,3.4622]
[1728118978734,8.51,144.43,144.41,3.462]
[1728118981235,8.51,144.44,144.42,3.4618]
[1728118990561,3.461,144.46,144.43,3.4617]
[1728118990745,8.51,144.44,144.43,3.4617]
[1728118992650,8.51,144.44,144.42,3.4618]
[1728118993845,8.51,144.43,144.4,4.82]
[1728118994154,8.51,144.43,144.41,3.462]
[1728118998453,11.9715,144.44,144.41,3.462]
[1728119002054,8.51,144.44,144.41,3.462]
[1728119005450,11.9714,144.44,144.41,3.462]
[1728119006063,3.4624,144.4,144.37,3.4631]
[1728119006357,8.51,144.38,144.35,0.12502]
[1728119006554,4.82,144.43,144.35,4.94502]
[1728119006555,8.51,144.36,144.35,4.94502]
[1728119006751,8.51,144.36,144.35,0.12502]
[1728119007453,8.51,144.36,144.35,3.58862]
[1728119007658,8.51,144.36,144.35,0.12502]
[1728119023872,8.51,144.38,144.35,3.58842]
[1728119024075,8.51,144.38,144.35,0.12502]
[1728119024367,9.9284,144.41,144.37,3.463]
[1728119024569,9.9284,144.41,144.37,4.82]
[1728119024777,8.51,144.41,144.37,13.33]
[1728119025569,8.51,144.41,144.38,3.4628]
[1728119028777,8.51,144.39,144.37,8.2831]
[1728119028967,8.51,144.39,144.37,4.82]
[1728119029173,8.51,144.38,144.36,4.82]
[1728119029973,8.51,144.38,144.36,8.2833]
[1728119031379,8.51,144.39,144.36,4.82]
[1728119031579,8.51,144.39,144.37,3.463]
[1728119034486,11.973,144.38,144.36,4.82]
[1728119042781,8.51,144.38,144.36,4.82]
[1728119044092,8.51,144.38,144.36,8.2831]
[1728119044296,8.51,144.38,144.36,4.82]
[1728119046590,4.82,144.42,144.36,4.82]
[1728119046591,230.0,144.5,144.36,4.82]
[1728119046795,8.51,144.42,144.36,13.33]
[1728119047100,8.51,144.42,144.37,8.51]
[1728119047989,8.51,144.42,144.39,3.4624]
[1728119050499,8.51,144.42,144.37,3.4631]
[1728119050500,8.51,144.4,144.37,3.4631]
[1728119050800,8.51,144.4,144.36,13.33]
[1728119051595,8.51,144.4,144.37,3.4631]
[1728119052099,8.51,144.38,144.36,4.82]
[1728119053088,8.51,144.38,144.36,8.2833]
[1728119054001,8.51,144.39,144.37,3.4631]
[1728119054403,8.51,144.39,144.36,4.82]
[1728119054603,8.51,144.39,144.36,8.2832]
[1728119055302,8.51,144.39,144.37,3.4631]
[1728119060102,4.8,144.43,144.36,4.82]
[1728119060307,4.8,144.43,144.38,3.4629]
[1728119060308,8.51,144.4,144.38,3.4629]
[1728119060806,8.51,144.4,144.37,3.4629]
[1728119064116,4.8,144.43,144.36,4.82]
[1728119064402,4.8,144.43,144.39,3.4625]
[1728119064403,8.51,144.42,144.39,3.4625]
[1728119064606,8.51,144.42,144.39,8.2625]
[1728119065504,11.9719,144.42,144.39,8.2625]
[1728119065705,8.51,144.41,144.39,4.8]
[1728119075313,8.51,144.41,144.38,8.2628]
[1728119077008,8.51,144.41,144.38,4.8]
[1728119077315,8.51,144.4,144.35,0.12502]
[1728119077610,8.51,144.4,144.36,4.8]
[1728119078012,3.4628,144.39,144.36,4.8]
[1728119083222,4.8,144.43,144.36,4.8]
[1728119083223,8.51,144.38,144.36,4.8]
[1728119083721,11.973,144.38,144.36,4.8]
[1728119084024,8.51,144.38,144.36,4.8]
[1728119084523,8.51,144.41,144.37,8.51]
[1728119085621,11.9722,144.41,144.37,11.973]
[1728119089021,8.51,144.41,144.38,3.4628]
[1728119097834,8.51,144.41,144.38,8.2128]
[1728119098232,11.9721,144.41,144.38,8.2128]
[1728119101236,3.4621,144.41,144.38,8.2128]
[1728119101436,2.6049,144.45,144.39,4.8]
[1728119101635,8.51,144.44,144.39,13.31]
[1728119101940,11.9716,144.44,144.4,3.4622]
[1728119102330,11.9716,144.44,144.39,13.31]
[1728119102534,8.51,144.44,144.42,3.4619]
[1728119102739,6.0662,144.45,144.42,3.4619]
[1728119102740,13.2726,144.45,144.42,3.4619]
[1728119103238,11.9715,144.44,144.39,14.643]
[1728119103427,8.51,144.43,144.39,14.643]
[1728119103831,8.51,144.43,144.4,3.4624]
[1728119104841,8.51,144.43,144.42,1.43]
[1728119110143,11.9715,144.44,144.42,1.43]
[1728119110845,8.51,144.44,144.42,1.43]
[1728119111047,3.4617,144.43,144.42,1.43]
[1728119111355,11.9717,144.43,144.42,1.43]
[1728119114447,8.51,144.43,144.42,1.43]
[1728119115258,11.9717,144.43,144.42,1.43]
[1728119115747,11.9717,144.43,144.42,7.67]
[1728119118849,8.51,144.44,144.42,7.67]
[1728119119147,11.9716,144.44,144.42,7.67]
[1728119119350,8.51,144.44,144.42,11.1319]
[1728119120757,8.51,144.44,144.42,7.67]
[1728119120947,11.9715,144.44,144.42,7.67]
[1728119122653,8.51,144.44,144.42,11.1318]
[1728119123855,8.51,144.44,144.42,7.67]
[1728119124154,11.9717,144.43,144.42,7.67]
[1728119127050,1.3013,144.45,144.42,7.67]
[1728119127246,8.51,144.44,144.42,7.67]
[1728119127955,8.51,144.44,144.42,6.24]
[1728119129254,11.9714,144.44,144.42,6.24]
[1728119129760,11.9714,144.44,144.43,1.43]
[1728119131961,11.9714,144.44,144.43,6.91]
[1728119132156,8.51,144.44,144.43,6.91]
[1728119133159,11.9714,144.44,144.43,6.91]
[1728119140669,3.4614,144.44,144.43,6.91]
[1728119144370,3.4614,144.44,144.43,11.09]
[1728119144869,3.39721857,144.48,144.43,11.09]
[1728119145067,8.63502,144.47,144.44,3.4614]
[1728119145964,12.09592,144.47,144.44,3.4614]
[1728119147274,3.461,144.46,144.44,3.4614]
[1728119148488,3.461,144.46,144.43,14.5516]
[1728119149184,0.12502,144.47,144.45,8.51]
[1728119150082,0.12502,144.47,144.46,3.4609]
[1728119153683,3.4597,144.52,144.48,3.4603]
[1728119153880,11.9697,144.52,144.48,8.2603]
[1728119154475,3.4597,144.51,144.48,8.2603]
[1728119158987,8.51,144.52,144.48,4.8]
[1728119159184,11.9696,144.52,144.49,3.4602]
[1728119159383,3.4596,144.52,144.49,3.4602]
[1728119159585,11.9696,144.52,144.49,3.4602]
[1728119160188,8.51,144.52,144.49,3.4602]
[1728119160588,0.12502,144.53,144.5,3.4598]
[1728119160788,8.63502,144.53,144.51,4.8]
[1728119161293,8.63502,144.53,144.52,1.43]
[1728119161593,12.09432,144.53,144.52,1.43]
[1728119162088,8.63502,144.53,144.52,8.07]
[1728119162286,0.12502,144.53,144.52,11.5295]
[1728119163580,0.12502,144.53,144.52,17.5795]
[1728119164390,0.12502,144.53,144.52,14.12]
[1728119170694,0.12502,144.53,144.52,18.92]
[1728119180001,0.12502,144.53,144.52,22.3795]
[1728119180300,0.12502,144.53,144.52,18.92]
[1728119184800,3.58432,144.53,144.52,18.92]
[1728119188902,0.12502,144.53,144.52,18.92]
[1728119196613,0.12502,144.53,144.52,20.55]
[1728119201012,0.12502,144.53,144.52,24.0095]
[1728119203911,84.65851474,144.59,144.56,3.4584]
[1728119204320,81.20061474,144.59,144.56,3.4584]
[1728119204510,84.65861474,144.59,144.56,3.4584]
[1728119205211,81.20061474,144.59,144.56,3.4584]
[1728119205715,81.20061474,144.59,144.56,9.5084]
[1728119206014,81.20061474,144.59,144.58,1.43]
[1728119207011,84.65841474,144.59,144.58,1.43]
[1728119207713,81.20061474,144.59,144.58,1.43]
[1728119207917,0.12502,144.59,144.58,1.43]
[1728119208116,0.12502,144.59,144.58,6.23]
[1728119208420,0.12502,144.59,144.58,18.1981]
[1728119209812,0.12502,144.59,144.58,23.7281]
[1728119210913,0.12502,144.59,144.58,25.1481]
[1728119214021,0.12502,144.59,144.58,13.18]
[1728119215318,3.58282,144.59,144.58,13.18]
[1728119215522,0.12502,144.59,144.58,13.18]
[1728119217422,0.12502,144.59,144.58,14.81]
[1728119223624,0.12502,144.59,144.58,19.7]
[1728119224016,0.12502,144.59,144.58,28.21]
[1728119224225,0.12502,144.59,144.58,31.6681]
[1728119225531,3.40827338,144.72,144.58,28.21]
[1728119225721,11.9659,144.67,144.61,8.51]
[1728119226032,11.9659,144.67,144.61,13.31]
[1728119226216,11.966,144.67,144.64,3.4566]
[1728119226421,7.4426,144.7,144.64,3.4566]
[1728119226618,8.51,144.67,144.64,3.4566]
[1728119227420,8.51,144.67,144.64,5.53]
[1728119228019,3.4564,144.66,144.64,5.53]
[1728119229631,3.4564,144.66,144.64,6.95]
[1728119230931,7.4426,144.7,144.64,6.95]
[1728119231132,3.4561,144.67,144.64,10.4066]